bitfinex-derivatives/quotes_SOLF0:USTF0_20250716
["timestamp","ask_amount","ask_price","bid_price","bid_amount"]
[1752701705503,3.41,174.73,174.72,3.32]
[1752701706201,0.03609164,174.74,174.71,6.09864016]
[1752701706402,0.03609164,174.74,174.73,3.32]
[1752701707308,3.41,174.8,174.73,3.32]
[1752701707498,3.41,174.8,174.76,3.32]
[1752701707702,3.41,174.86,174.78,6.09864016]
[1752701708007,3.41,174.86,174.79,5.7183]
[1752701708008,5.7163,174.86,174.79,5.7183]
[1752701708199,3.41,174.85,174.79,3.32]
[1752701709401,493.7,174.9,174.8,6.09864016]
[1752701709607,173.28,174.91,174.8,6.09864016]
[1752701709608,173.28,174.91,174.84,6.09864016]
[1752701709806,0.99445619,175.08,174.87,6.09864016]
[1752701709807,3.41,175.07,174.87,6.09864016]
[1752701710011,3.41,175.07,174.81,3.32]
[1752701710012,6.09864016,175.02,174.91,6.09864016]
[1752701710204,0.99445619,175.08,174.97,6.09864016]
[1752701710205,3.41,175.01,174.97,6.09864016]
[1752701710412,6.09864016,175.1,174.98,3.32]
[1752701710710,6.09864016,175.12,175.01,3.32]
[1752701711111,6.09864016,175.09,175.01,3.32]
[1752701711513,56.16878768,175.18,175.01,3.32]
[1752701711514,56.16878768,175.18,175.01,9.41864016]
[1752701711712,5.7085,175.1,175.02,3.32]
[1752701711907,6.09864016,175.15,175.04,6.09864016]
[1752701712211,56.16878768,175.18,175.05,3.32]
[1752701712412,3.41,175.14,175.05,3.32]
[1752701713018,3.41,175.14,175.08,0.03618519]
[1752701714010,3.41,175.11,175.04,3.32]
[1752701714306,3.41,175.1,175.04,3.32]
[1752701715215,3.41,175.08,175.04,3.32]
[1752701715415,0.04015251,175.09,175.04,3.32]
[1752701715611,3.41,175.07,175.04,3.32]
[1752701715910,3.41,175.06,175.04,3.32]
[1752701716617,0.04015251,175.09,175.05,3.32]
[1752701716809,3.41,175.07,175.05,3.32]
[1752701717310,3.45216971,175.08,175.01,3.32]
[1752701718419,3.41,175.05,174.99,17.48]
[1752701719113,0.04190201,175.04,174.99,17.48]
[1752701719317,9.50864016,175.03,174.99,17.48]
[1752701719524,3.41,175.02,174.99,17.48]
[1752701720011,3.41,175.0,174.99,17.48]
[1752701720212,9.50864016,175.0,174.99,17.48]
[1752701720405,5.7125,174.98,174.9,6.09864016]
[1752701720606,3.41,174.97,174.95,3.32]
[1752701722013,5.75092938,174.98,174.95,3.32]
[1752701722214,3.41,174.96,174.95,3.32]
[1752701722515,3.41,174.96,174.89,3.32]
[1752701722720,3.41,174.96,174.9,3.32]
[1752701723413,9.1231,174.96,174.9,3.32]
[1752701724011,3.41,174.96,174.9,3.32]
[1752701724509,6.09864016,174.97,174.88,85.2245539]
[1752701724715,3.41,174.96,174.89,3.32]
[1752701724917,0.03740249,174.94,174.89,3.32]
[1752701725120,3.41,174.93,174.88,85.2245539]
[1752701725321,3.41,174.93,174.91,3.32]
[1752701726012,9.124,174.93,174.91,3.32]
[1752701726213,3.41,174.91,174.87,15.26]
[1752701726414,3.41,174.91,174.89,3.32]
[1752701726616,9.1247,174.91,174.89,3.32]
[1752701727211,9.1251,174.9,174.88,3.32]
[1752701727418,3.41,174.89,174.88,3.32]
[1752701728319,3.41,174.89,174.87,18.58]
[1752701728915,3.41,174.88,174.87,18.58]
[1752701729720,3.41,174.88,174.87,15.26]
[1752701730121,3.41,174.88,174.83,3.32]
[1752701730309,3.41,174.89,174.81,3.32]
[1752701730914,0.0371483,174.87,174.81,3.32]
[1752701731419,3.4471483,174.87,174.81,3.32]
[1752701732017,3.41,174.85,174.81,3.32]
[1752701733114,0.0371483,174.87,174.81,3.32]
[1752701733115,5.7164,174.86,174.81,3.32]
[1752701733319,3.41,174.85,174.81,3.32]
[1752701736523,3.41,174.84,174.79,3.14]
[1752701736723,3.41,174.86,174.8,3.14]
[1752701737041,174.11518138,174.96,174.8,3.14]
[1752701737042,3.41,174.83,174.8,3.14]
[1752701737220,3.41,174.83,174.78,3.14]
[1752701737518,3.41,174.82,174.78,3.14]
[1752701738426,3.41,174.81,174.79,3.14]
[1752701738620,6.14176927,174.85,174.79,3.14]
[1752701738826,3.41,174.8,174.79,3.14]
[1752701739129,3.41,174.85,174.79,3.14]
[1752701739423,3.41,174.83,174.79,3.14]
[1752701739623,0.03675949,174.84,174.79,3.14]
[1752701739812,3.41,174.82,174.75,6.09864016]
[1752701740012,3.41,174.82,174.76,3.14]
[1752701741322,0.04237504,174.83,174.76,3.14]
[1752701742230,0.04237504,174.83,174.79,3.14]
[1752701742426,0.04237504,174.83,174.81,6.09864016]
[1752701742727,174.11518138,174.96,174.81,6.09864016]
[1752701742728,3.41,174.89,174.82,3.14]
[1752701743516,3.41,174.89,174.85,3.14]
[1752701744029,5.7153,174.9,174.85,3.14]
[1752701744228,9.1253,174.9,174.85,3.14]
[1752701744827,3.41,174.89,174.86,0.03658757]
[1752701745028,3.41,174.89,174.87,3.14]
[1752701745220,3.41,174.89,174.88,3.14]
[1752701745417,3.41,174.89,174.86,0.03658757]
[1752701745418,9.1253,174.89,174.86,3.17658757]
[1752701745622,3.41,174.87,174.86,0.03658757]
[1752701746025,3.41,174.87,174.84,239.0]
[1752701746324,6.10065635,174.9,174.84,242.14]
[1752701746518,3.41,174.85,174.84,242.14]
[1752701746724,3.41,174.85,174.84,3.14]
[1752701746932,6.10065635,174.9,174.81,3.14]
[1752701747132,3.41,174.89,174.83,0.03658518]
[1752701747427,3.41,174.89,174.83,3.17658518]
[1752701747631,3.41,174.89,174.83,0.03658518]
[1752701747832,3.41,174.87,174.84,3.14]
[1752701748034,3.41,174.86,174.85,3.14]
[1752701750724,3.41,174.88,174.86,3.14]
[1752701751031,6.10214335,174.9,174.84,3.17900186]
[1752701751234,3.41,174.89,174.84,3.14]
[1752701751829,3.41,174.89,174.85,0.03736608]
[1752701752124,6.10214335,174.88,174.85,0.03736608]
[1752701752329,3.41,174.87,174.85,0.03736608]
[1752701752531,3.41,174.87,174.81,3.14]
[1752701752729,5.7172,174.84,174.81,3.14]
[1752701752925,3.41,174.87,174.81,3.14]
[1752701753130,3.41,174.85,174.82,0.03834054]
[1752701753329,6.10214335,174.86,174.82,0.03834054]
[1752701753330,3.41,174.83,174.82,0.03834054]
[1752701753530,3.41,174.83,174.77,3.14]
[1752701753931,3.41,174.82,174.81,0.0374533]
[1752701754438,3.41,174.81,174.8,3.14]
[1752701754740,3.41,174.81,174.8,3.17786384]
[1752701755341,6.10214335,174.88,174.8,3.17786384]
[1752701755537,3.41,174.87,174.8,3.17786384]
[1752701755737,6.10214335,174.88,174.81,3.14]
[1752701755738,3.41,174.83,174.81,3.14]
[1752701755939,3.41,174.83,174.82,3.14]
[1752701756134,3.41,174.83,174.82,3.17644014]
[1752701756338,9.1273,174.83,174.82,0.03644014]
[1752701758044,5.7173,174.83,174.82,3.17644014]
[1752701758239,3.41,174.85,174.82,3.17644014]
[1752701758444,3.41,174.87,174.82,3.17644014]
[1752701759635,9.1273,174.83,174.82,3.17644014]
[1752701762641,9.1273,174.83,174.82,0.03644014]
[1752701762846,9.1273,174.83,174.82,3.17644014]
[1752701763046,9.1273,174.83,174.82,4.014e-05]
[1752701763342,5.7173,174.83,174.82,3.30004014]
[1752701763744,5.75427481,174.84,174.82,3.30004014]
[1752701763940,0.03717481,174.84,174.82,3.30004014]
[1752701765559,0.03717481,174.84,174.82,6.10218349]
[1752701765759,0.03717481,174.84,174.83,3.3]
[1752701767868,3.1,174.9,174.83,3.3]
[1752701768966,5.716,174.88,174.83,3.3]
[1752701769162,3.1,174.9,174.83,3.3]
[1752701769462,5.7157,174.88,174.83,3.3]
[1752701769663,3.1,174.88,174.83,3.3]
[1752701771964,5.7154,174.89,174.83,3.3]
[1752701772362,8.815,174.9,174.83,3.3]
[1752701772565,3.1,174.9,174.83,3.3]
[1752701774160,5.7153,174.89,174.83,3.3]
[1752701774860,173.68,174.91,174.83,3.3]
[1752701774861,3.1,174.87,174.83,3.3]
[1752701775369,5.7154,174.89,174.83,3.3]
[1752701775571,8.8154,174.89,174.83,3.3]
[1752701777472,3.1,174.89,174.83,3.3]
[1752701778163,3.1,174.86,174.83,3.3]
[1752701779564,4.11880443,174.96,174.85,3.3]
[1752701779565,3.1,174.93,174.85,3.3]
[1752701779869,3.1,174.92,174.88,3.3]
[1752701780372,3.1,174.91,174.88,3.3]
[1752701781073,3.1,174.95,174.88,3.3]
[1752701781774,3.1,174.95,174.78,243.11880443]
[1752701781775,8.8142,174.93,174.9,3.33997876]
[1752701782268,3.1,174.91,174.9,3.3]
[1752701782477,3.1,174.91,174.9,3.34172842]
[1752701782868,3.1,174.91,174.9,0.04172842]
[1752701783673,3.1,174.92,174.9,3.34172842]
[1752701783875,3.1,174.91,174.9,0.04172842]
[1752701786270,3.1,174.91,174.9,3.34172842]
[1752701788275,8.8147,174.91,174.9,3.34172842]
[1752701788482,3.1,174.94,174.91,3.3]
[1752701788978,5.7143,174.92,174.91,3.3]
[1752701789179,6.09894166,174.96,174.9,3.34172842]
[1752701789180,3.1,174.91,174.9,3.34172842]
[1752701789570,3.1,174.91,174.9,0.04172842]
[1752701789975,8.8147,174.91,174.9,0.04172842]
[1752701790373,5.7147,174.91,174.9,3.34172842]
[1752701790574,8.8144,174.92,174.91,3.3]
[1752701791984,3.1,174.92,174.91,3.3]
[1752701792382,3.1,174.96,174.9,3.34172842]
[1752701792572,5.7147,174.91,174.9,3.34172842]
[1752701792777,8.8147,174.91,174.9,3.34172842]
[1752701793184,8.8147,174.91,174.9,0.04172842]
[1752701795986,8.8147,174.91,174.9,3.34172842]
[1752701796391,5.7147,174.91,174.9,3.34172842]
[1752701796594,3.29,174.96,174.9,3.34172842]
[1752701797684,173.34,174.97,174.9,3.34172842]
[1752701797685,5.7143,174.93,174.9,3.34172842]
[1752701798489,5.7145,174.92,174.9,3.34172842]
[1752701798888,9.0047,174.91,174.9,0.04172842]
[1752701800682,5.716,174.87,174.86,3.3]
[1752701800883,9.006,174.87,174.86,3.3]
[1752701801079,3.29,174.87,174.86,3.3]
[1752701802185,9.006,174.87,174.86,3.3]
[1752701802388,3.29,174.87,174.81,3.3]
[1752701802692,0.03971501,174.88,174.81,3.3]
[1752701802693,9.0064,174.86,174.82,3.3]
[1752701803987,3.29,174.86,174.82,3.3]
[1752701804290,3.29,174.84,174.83,3.3]
[1752701804679,9.0069,174.84,174.83,3.3]
[1752701805288,3.29,174.82,174.81,3.3]
[1752701805691,3.29,174.83,174.82,3.3]
[1752701805893,9.0074,174.83,174.82,3.3]
[1752701806091,9.04683244,174.83,174.82,3.3]
[1752701806392,5.75683244,174.83,174.82,3.3]
[1752701807191,5.7178,174.82,174.79,3.3]
[1752701807388,3.32943244,174.83,174.79,3.3]
[1752701807586,5.718,174.81,174.79,3.3]
[1752701808589,9.0082,174.8,174.79,3.3]
[1752701812603,5.7191,174.78,174.76,255.63]
[1752701812898,5.7191,174.78,174.77,3.3]
[1752701813700,9.0091,174.78,174.77,3.3]
[1752701813997,9.0092,174.77,174.76,16.63]
[1752701815893,13.12971148,174.77,174.76,16.63]
[1752701817194,13.12971148,174.77,174.76,1e-08]
[1752701817395,5.7204,174.74,174.68,736.94051148]
[1752701817595,9.0104,174.74,174.73,3.3]
[1752701820098,9.0104,174.74,174.68,239.0]
[1752701820099,3.29,174.74,174.68,3.3]
[1752701820696,5.7214,174.71,174.68,3.3]
[1752701820900,3.29,174.72,174.68,3.3]
[1752701821099,5.7214,174.71,174.68,3.3]
[1752701821305,3.29,174.72,174.68,3.3]
[1752701821505,3.33240616,174.72,174.68,3.3]
[1752701821703,0.04240616,174.72,174.69,4.12051148]
[1752701821897,0.04240616,174.72,174.7,3.3]
[1752701822099,5.76350616,174.72,174.7,3.3]
[1752701822292,5.76350616,174.72,174.67,172.9]
[1752701822293,3.33240616,174.72,174.67,7.42051148]
[1752701822499,3.33240616,174.72,174.68,3.3]
[1752701822998,5.7218,174.7,174.68,3.3]
[1752701824000,5.7218,174.69,174.68,3.3]
[1752701824196,3.33240616,174.72,174.68,3.3]
[1752701824495,5.7214,174.71,174.7,3.18]
[1752701826402,11.4368,174.8,174.7,3.18]
[1752701826604,11.4368,174.8,174.73,3.18]
[1752701826803,3.41,174.76,174.73,3.18]
[1752701827004,5.7201,174.75,174.73,3.18]
[1752701828096,5.7195,174.77,174.73,3.18]
[1752701828306,4.12051148,174.81,174.72,0.0432721]
[1752701828307,4.12051148,174.75,174.72,0.0432721]
[1752701828503,3.41,174.74,174.72,0.0432721]
[1752701828804,3.41,174.73,174.72,3.2232721]
[1752701829006,3.41,174.75,174.72,3.2232721]
[1752701829202,5.7205,174.73,174.72,3.2232721]
[1752701829400,9.1305,174.73,174.72,3.2232721]
[1752701830004,3.41,174.73,174.72,3.2232721]
[1752701830206,3.41,174.78,174.72,3.2232721]
[1752701831013,7.53051148,174.78,174.72,3.2232721]
[1752701831208,3.41,174.75,174.73,3.18]
[1752701831607,5.7198,174.76,174.73,3.18]
[1752701831608,3.41,174.74,174.73,3.18]
[1752701833718,3.41,174.74,174.72,3.2232721]
[1752701834118,13.25071148,174.74,174.72,0.0432721]
[1752701834322,3.41,174.73,174.72,0.0432721]
[1752701834713,9.84101148,174.73,174.72,0.0432721]
[1752701834911,13.25101148,174.73,174.72,0.0432721]
[1752701836113,3.41,174.72,174.61,3.18]
[1752701836316,494.24,174.76,174.6,15.57]
[1752701836317,4.12051148,174.69,174.6,15.57]
[1752701836513,3.41,174.67,174.61,3.18]
[1752701836814,4.12051148,174.65,174.61,3.18]
[1752701837119,3.41,174.62,174.6,15.57]
[1752701837512,3.41,174.6,174.51,4.12051148]
[1752701837707,9.1348,174.6,174.52,3.18]
[1752701838019,3.41,174.58,174.52,3.18]
[1752701838318,3.45106996,174.58,174.52,3.18]
[1752701840421,3.41,174.56,174.52,3.18]
[1752701841116,3.45106996,174.58,174.52,3.18]
[1752701841328,3.41,174.57,174.53,3.18]
[1752701842117,0.04106996,174.58,174.53,3.18]
[1752701842913,0.04106996,174.58,174.49,3.18]
[1752701843113,5.76656996,174.58,174.49,3.18]
[1752701843324,5.76656996,174.58,174.52,3.18]
[1752701844520,0.04106996,174.58,174.52,3.18]
[1752701845224,0.04106996,174.58,174.54,3.18]
[1752701845925,0.04106996,174.58,174.55,3.18]
[1752701846125,0.04106996,174.58,174.52,5.7274]
[1752701846319,3.45106996,174.58,174.52,3.18]
[1752701847018,0.04106996,174.58,174.54,3.18]
[1752701849321,3.41,174.62,174.56,3.18]
[1752701849626,3.41,174.62,174.56,4.12051148]
[1752701849827,3.41,174.61,174.57,3.18]
[1752701850325,3.41,174.6,174.57,3.18]
[1752701850525,3.41,174.6,174.59,3.18]
[1752701850722,3.41,174.6,174.57,3.18]
[1752701850925,3.41,174.6,174.58,3.18]
[1752701851124,3.41,174.6,174.59,3.18]
[1752701851423,17.11,174.59,174.26,6.25264553]
[1752701851736,3.18,174.3,174.06,4.12051148]
[1752701851931,3.18,174.3,174.07,2.39660145]
[1752701851932,4.75938854,174.19,174.07,2.39660145]
[1752701852229,494.6,174.3,174.14,4.12051148]
[1752701852230,4.75920677,174.2,174.14,4.12051148]
[1752701852428,4.75920677,174.2,174.15,2.39660145]
[1752701852626,4.75920677,174.18,174.04,494.6]
[1752701852815,4.75920677,174.18,174.12,4.12051148]
[1752701853015,4.75920677,174.18,174.04,494.6]
[1752701853221,6.34761023,174.22,174.04,494.6]
[1752701853430,6.34761023,174.23,174.16,6.14960743]
[1752701853618,6.14960743,174.29,174.04,494.6]
[1752701853619,6.34761023,174.25,174.04,494.6]
[1752701853820,6.34761023,174.23,174.18,3.39]
[1752701854017,9.51316985,174.28,174.21,3.39]
[1752701854018,2.91761023,174.24,174.21,3.39]
[1752701854320,5.737,174.23,174.21,3.39]
[1752701854626,3.12,174.24,174.17,3.39]
[1752701854825,5.7389,174.17,174.11,3.39]
[1752701855026,3.97945291,174.16,174.11,3.39]
[1752701855227,5.7389,174.17,174.07,3.39]
[1752701855228,3.97945291,174.15,174.07,3.39]
[1752701855427,3.97945291,174.14,174.07,3.39]
[1752701855631,3.97945291,174.13,174.12,0.03959729]
[1752701855925,1.11069851,174.13,174.12,3.42959729]
[1752701856124,1.11069851,174.13,174.12,3.39]
[1752701856523,1.11069851,174.13,174.11,3.39]
[1752701856724,3.12,174.16,174.14,3.39]
[1752701856927,3.12,174.18,174.15,3.39]
[1752701857133,3.12,174.23,174.16,9.53960743]
[1752701857331,3.12,174.23,174.16,3.39]
[1752701857730,3.12,174.2,174.18,3.42662631]
[1752701857926,15.66277728,174.26,174.18,0.03662631]
[1752701858233,3.12,174.19,174.18,0.03662631]
[1752701858922,5.45486883,174.19,174.11,3.39]
[1752701859122,3.12,174.19,174.11,3.39]
[1752701859328,3.12,174.17,174.11,3.39]
[1752701859922,8.47943756,174.19,174.11,3.39]
[1752701859923,5.7396,174.16,174.11,3.39]
[1752701860127,3.12,174.14,174.11,3.39]
[1752701860328,5.7385,174.19,174.12,3.39]
[1752701860536,3.12,174.15,174.12,3.39]
[1752701861127,9.51316985,174.25,174.09,5.7414]
[1752701861435,6.14960743,174.22,174.13,3.39]
[1752701861628,2.26033095,174.21,174.13,3.39]
[1752701861830,3.12,174.2,174.13,3.39]
[1752701863229,4.07534871,174.19,174.13,3.39]
[1752701863436,3.12,174.2,174.13,3.39]
[1752701863437,7.19534871,174.18,174.13,6.14960743]
[1752701863633,4.07534871,174.17,174.15,3.39]
[1752701863839,4.07534871,174.16,174.15,3.39]
[1752701865140,7.19534871,174.16,174.15,3.39]
[1752701865340,6.14960743,174.23,174.15,3.39]
[1752701865638,3.12,174.18,174.16,3.39]
[1752701867234,3.12,174.19,174.13,3.39]
[1752701867942,3.12,174.17,174.13,3.39]
[1752701868134,3.12,174.15,174.12,3.39]
[1752701868335,7.10758791,174.14,174.12,3.39]
[1752701868537,3.12,174.19,174.1,9.53960743]
[1752701868739,3.12,174.17,174.11,3.39]
[1752701868936,3.98593181,174.16,174.11,6.14960743]
[1752701869139,3.98593181,174.15,174.14,3.39]
[1752701870344,3.12,174.19,174.14,3.39]
[1752701870545,3.98502675,174.18,174.11,3.39]
[1752701870844,3.98502675,174.18,174.07,203.72]
[1752701870845,3.12,174.18,174.15,3.39]
[1752701871044,3.12,174.17,174.15,3.39]
[1752701871439,3.12,174.17,174.12,6.14960743]
[1752701871744,3.12,174.17,174.16,3.39]
[1752701872139,5.7377,174.21,174.16,3.39]
[1752701872438,3.12,174.2,174.16,3.39]
[1752701873846,3.12,174.16,174.06,3.39]
[1752701874346,3.12,174.16,174.05,14.45960743]
[1752701874347,3.12,174.16,174.1,9.1312]
[1752701874534,3.16227503,174.13,174.11,3.39]
[1752701874935,3.12,174.13,174.11,9.1309]
[1752701876348,3.12,174.13,174.11,3.39]
[1752701877447,3.84661623,174.17,174.06,3.39]
[1752701877448,3.12,174.16,174.06,3.39]
[1752701877646,3.15728685,174.14,174.06,3.39]
[1752701877841,6.35683517,174.14,174.05,14.45960743]
[1752701878139,3.12,174.13,174.07,3.39]
[1752701878645,3.15728685,174.14,174.1,3.39]
[1752701878849,0.03728685,174.14,174.1,3.39]
[1752701879046,0.03728685,174.14,174.13,5.7403]
[1752701879246,0.03728685,174.14,174.06,3.39]
[1752701879546,0.03728685,174.14,174.09,3.39]
[1752701879753,3.12,174.13,174.11,3.39]
[1752701880048,3.12,174.13,174.05,8.31]
[1752701880550,3.12,174.13,174.11,3.39]
[1752701881037,3.12,174.12,174.09,3.39]
[1752701881244,3.12,174.13,174.06,3.39]
[1752701881455,3.12,174.07,174.05,8.31]
[1752701881756,3.12,174.06,174.05,8.31]
[1752701882442,7.12294342,174.06,174.05,8.31]
[1752701882639,1.34,174.05,173.8,9.53960743]
[1752701882949,1.34,174.03,173.92,3.39]
[1752701883155,5.35294342,174.02,173.92,3.39]
[1752701883354,4.00294342,174.01,173.93,10.30261468]
[1752701883537,1.35,174.02,173.93,10.30261468]
[1752701883538,4.00294342,174.0,173.94,3.36]
[1752701883745,495.86,174.08,173.81,189.92]
[1752701883746,4.00294342,173.99,173.81,189.92]
[1752701883944,4.00294342,173.98,173.82,3.36]
[1752701884252,4.0018877,173.97,173.92,3.36]
[1752701884442,4.00028328,173.96,173.92,3.36]
[1752701884753,4.00028328,173.95,173.92,3.36]
[1752701885050,1.35,174.0,173.92,3.36]
[1752701885240,5.35172388,173.99,173.92,3.36]
[1752701885442,1.35,173.97,173.92,3.36]
[1752701885638,4.00172388,173.96,173.86,3.36]
[1752701885842,4.00172388,173.95,173.86,3.36]
[1752701886044,4.00172388,173.94,173.86,3.36]
[1752701886243,4.00172388,173.93,173.86,3.36]
[1752701886447,4.00172388,173.92,173.86,3.36]
[1752701886645,7.57362912,174.0,173.89,3.36]
[1752701886841,7.57362912,174.0,173.89,13.66261468]
[1752701886842,1.35,174.0,173.89,13.66261468]
[1752701887050,7.57362912,174.0,173.9,3.36]
[1752701887247,1.35,174.0,173.9,3.36]
[1752701887651,6.22362912,174.01,173.95,3.36]
[1752701887855,6.22362912,174.04,173.97,3.36]
[1752701888154,6.22362912,174.04,173.99,3.36]
[1752701888347,6.22362912,174.05,174.01,3.36]
[1752701888543,9.51316985,174.07,174.03,5.7435]
[1752701888743,6.34628157,174.06,174.03,3.36]
[1752701889050,9.51316985,174.07,174.04,5.7432]
[1752701889247,6.34698414,174.06,174.05,3.36]
[1752701889449,6.34698414,174.06,174.05,10.30261468]
[1752701889658,1.35,174.13,174.05,16.04261468]
[1752701889954,1.35,174.13,174.0,10.30261468]
[1752701889955,1.35,174.13,174.08,10.30261468]
[1752701890252,1.35,174.13,174.08,5.7419]
[1752701890446,1.35,174.13,173.99,496.16]
[1752701890644,1.35,174.13,174.05,5.7429]
[1752701890848,1.35,174.13,173.99,496.16]
[1752701891054,1.35,174.13,174.03,10.30261468]
[1752701891260,3.34,174.12,174.04,5.7432]
[1752701891462,3.34,174.12,174.05,3.36]
[1752701891758,3.34,174.12,174.06,3.36]
[1752701892546,3.34,174.12,173.99,496.16]
[1752701892752,3.34,174.11,174.03,3.36]
[1752701893061,3.34,174.11,174.06,3.36]
[1752701893252,3.34,174.09,174.02,10.30261468]
[1752701893452,12.56994931,174.07,174.02,10.30261468]
[1752701893647,12.56994931,174.08,174.02,10.30261468]
[1752701893954,12.56994931,174.07,174.05,5.7429]
[1752701894158,21.68017749,174.13,174.05,5.7429]
[1752701894362,19.27957749,174.09,174.02,10.30261468]
[1752701894556,12.5955127,174.04,174.02,10.30261468]
[1752701894748,12.5955127,174.05,174.02,10.30261468]
[1752701894949,3.34,174.09,174.02,10.30261468]
[1752701895153,19.27957749,174.09,174.03,2.24]
[1752701895348,15.93957749,174.07,174.05,5.7427]
[1752701895560,19.27957749,174.09,174.06,2.24]
[1752701896263,19.27957749,174.09,174.02,10.30261468]
[1752701896264,19.27957749,174.09,174.07,2.24]
[1752701896555,3.34,174.11,173.97,53.26168357]
[1752701896768,3.34,174.05,173.98,10.30261468]
[1752701896962,3.34,174.05,174.01,10.30261468]
[1752701897160,15.93957749,174.11,174.01,10.30261468]
[1752701897161,3.34,174.07,174.01,10.30261468]
[1752701897351,3.34,174.07,174.06,5.7426]
[1752701897555,12.71206701,174.08,174.04,10.30261468]
[1752701897961,12.71206701,174.07,174.04,10.30261468]
[1752701898468,12.71206701,174.07,174.06,5.7426]
[1752701898756,12.71206701,174.07,174.06,3.58912707]
[1752701899162,3.34,174.09,174.07,5.7423]
[1752701899365,3.34,174.08,173.97,53.26168357]
[1752701899564,12.71985672,174.05,174.02,10.30261468]
[1752701899750,12.71985672,174.06,174.05,5.7429]
[1752701899954,3.34,174.06,174.05,5.7429]
[1752701900464,16.05985672,174.06,174.05,5.7429]
[1752701900762,3.34,174.06,174.05,5.7429]
[1752701901974,3.34,174.09,174.02,10.30261468]
[1752701902168,3.92437168,174.05,174.02,10.30261468]
[1752701902460,3.34,174.09,174.02,10.30261468]
[1752701902866,3.34,174.09,174.05,10.30261468]
[1752701903065,3.34,174.09,174.08,5.7419]
[1752701904162,5.7397,174.15,174.0,6.15438293]
[1752701904163,3.34,174.14,174.0,6.15438293]
[1752701904366,3.34,174.14,173.99,234.8]
[1752701904563,3.34,174.14,174.06,6.15438293]
[1752701904959,3.34,174.14,174.09,6.15438293]
[1752701905571,3.34,174.14,174.09,11.89588293]
[1752701906070,3.34,174.14,174.09,6.15438293]
[1752701906969,3.34,174.14,174.1,5.7413]
[1752701907866,3.34,174.14,174.02,496.04]
[1752701908268,5.7406,174.12,174.06,5.7423]
[1752701908572,3.34,174.11,174.06,5.7423]
[1752701908764,3.34,174.11,174.06,6.15438293]
[1752701908966,3.34,174.16,174.06,6.15438293]
[1752701909166,3.34,174.16,174.09,6.15438293]
[1752701909673,3.34,174.14,174.09,6.15438293]
[1752701909873,3.34,174.13,174.12,5.7406]
[1752701911775,3.34,174.15,174.14,5.74]
[1752701912079,9.54618677,174.16,174.13,6.15438293]
[1752701912080,12.88618677,174.16,174.13,6.15438293]
[1752701912469,3.34,174.15,174.14,5.7397]
[1752701912670,3.34,174.15,174.14,11.88887749]
[1752701913568,9.54618677,174.18,174.14,6.14917749]
[1752701913772,3.37,174.17,174.14,6.14917749]
[1752701913974,3.37,174.16,174.13,6.14917749]
[1752701914280,3.37,174.15,174.14,5.74]
[1752701914777,3.37,174.15,174.13,6.14917749]
[1752701914778,9.54618677,174.18,174.16,5.7393]